fUSD/lending_fUSD_20250120
["ID","MTS","AMOUNT","RATE_DAILY","PERIOD"]
[349641245,1737346238612,-717.54,0.0002119,2]
[349641246,1737346238622,-500.0,0.0002119,2]
[349641247,1737346238631,-500.0,0.0002119,2]
[349641248,1737346238640,-500.0,0.0002119,2]
[349641249,1737346238650,-500.0,0.0002119,2]
[349641250,1737346238659,-365.26425311,0.0002119,2]
[349641251,1737346238672,-134.73574689,0.0002119,2]
[349641252,1737346238681,-800.77,0.0002119,2]
[349641253,1737346238690,-500.0,0.0002119,2]
[349641254,1737346238701,-500.0,0.0002119,2]
[349641255,1737346238711,-500.0,0.0002119,2]
[349641256,1737346238721,-512.73076845,0.0002119,2]
[349641257,1737346238731,-501.27469147,0.0002119,2]
[349641258,1737346238740,-500.0,0.0002119,2]
[349641259,1737346238750,-450.0,0.0002119,2]
[349641260,1737346238760,-500.0,0.0002119,2]
[349641261,1737346238769,-500.0,0.0002119,2]
[349641262,1737346238778,-500.0,0.0002119,2]
[349641263,1737346238788,-501.87557155,0.0002119,2]
[349641264,1737346238798,-500.0,0.0002119,2]
[349641265,1737346238807,-1437.39,0.0002119,2]
[349641266,1737346238816,-9698.19,0.0002119,2]
[349641267,1737346238825,-506.20948318,0.0002119,2]
[349641268,1737346238835,-2399.64134836,0.0002119,2]
[349641269,1737346238847,-174.65865164,0.0002119,2]
[349641270,1737346238857,-500.0,0.0002119,2]
[349641271,1737346238866,-500.0,0.0002119,2]
[349641272,1737346238876,-951.98,0.0002119,2]
[349641273,1737346238886,-500.0,0.0002119,2]
[349641274,1737346238895,-2888.63,0.0002119,2]
[349641275,1737346238905,-500.0,0.0002119,2]
[349641276,1737346238915,-500.0,0.0002119,2]
[349641277,1737346238924,-503.84196178,0.0002119,2]
[349641278,1737346238934,-500.0,0.0002119,2]
[349641279,1737346238943,-500.0,0.0002119,2]
[349641280,1737346238956,-1042.63,0.0002119,2]
[349641281,1737346238966,-3515.83,0.0002119,2]
[349641282,1737346238975,-2178.14,0.0002119,2]
[349641283,1737346238985,-1386.1,0.0002119,2]
[349641284,1737346238995,-938.56,0.0002119,2]
[349641285,1737346239004,-8521.1,0.0002119,2]
[349641286,1737346239014,-500.0,0.0002119,2]
[349641287,1737346239024,-509.97165721,0.0002119,2]
[349641288,1737346239034,-2489.85,0.0002119,2]
[349641289,1737346239043,-1454.08,0.0002119,2]
[349641290,1737346239058,-500.0,0.0002119,2]
[349641291,1737346239067,-1719.29,0.0002119,2]
[349641292,1737346239077,-2994.63,0.0002119,2]
[349641293,1737346239087,-628.75,0.0002119,2]
[349641294,1737346239096,-1034.68,0.0002119,2]
[349641295,1737346239106,-2024.39,0.0002119,2]
[349641296,1737346239115,-500.0,0.0002119,2]
[349641297,1737346239125,-1468.96,0.0002119,2]
[349641298,1737346239134,-500.0,0.0002119,2]
[349641299,1737346239144,-500.0,0.0002119,2]
[349641300,1737346239154,-485.95997888,0.0002119,2]
[349641301,1737346239167,-210.76002112,0.0002119,2]
[349641302,1737346239177,-528.16739892,0.0002119,2]
[349641303,1737346239186,-841.92257996,0.0002119,2]
[349641304,1737346239209,-2019.74742004,0.0002119,2]
[349641305,1737346239218,-500.0,0.0002119,2]
[349641306,1737346239227,-1797.95,0.0002119,2]
[349641307,1737346239237,-690.9,0.0002119,2]
[349641308,1737346239246,-1409.2,0.0002119,2]
[349641309,1737346239256,-507.59826571,0.0002119,2]
[349641310,1737346239266,-505.18616153,0.0002119,2]
[349641311,1737346239275,-500.0,0.0002119,2]
[349641312,1737346239285,-500.0,0.0002119,2]
[349641313,1737346239293,-500.0,0.0002119,2]
[349641314,1737346239303,-512.74228884,0.0002119,2]
[349641315,1737346239312,-532.9380442,0.0002119,2]
[349641316,1737346239322,-2824.5,0.0002119,2]
[349641317,1737346239331,-732.86,0.0002119,2]
[349641318,1737346239341,-898.96,0.0002119,2]
[349641319,1737346239351,-467.02874522,0.0002119,2]
[349641320,1737346239361,-500.0,0.0002119,2]
[349641321,1737346239370,-502.22936012,0.0002119,2]
[349641322,1737346239380,-1912.45,0.0002119,2]
[349641323,1737346239390,-500.0,0.0002119,2]
[349641324,1737346239399,-2309.70971433,0.0002119,2]
[349641334,1737346240090,-2489.11028567,0.0002119,2]
[349641335,1737346240100,-952.46,0.0002119,2]
[349641336,1737346240110,-412.42971434,0.0002119,2]
[349641337,1737346240873,-185.58943527,0.0002119,2]
[349641338,1737346240883,-155.99077504,0.0002119,2]
[349641339,1737346240925,-344.00922496,0.0002119,2]
[349641340,1737346240935,-462.42472459,0.0002119,2]
[349641341,1737346240944,-166.64605045,0.0002119,2]
[349641342,1737346241033,-655.47422672,0.0002119,2]
[349641343,1737346241044,-861.17972283,0.0002119,2]
[349641344,1737346241054,-342.69027654,0.0002119,2]
[349641345,1737346241067,-157.30972346,0.0002119,2]
[349641346,1737346241076,-530.75037618,0.0002119,2]
[349641347,1737346241086,-500.0,0.0002119,2]
[349641348,1737346241095,-3197.38396861,0.0002119,2]
[349641349,1737346241242,-508.55,0.0002119,2]
[349641350,1737346241316,-1680.80603139,0.0002119,2]
[349641351,1737346241327,-1063.79396861,0.0002119,2]
[349641354,1737346243132,-415.000084,0.00021189,2]
[349641355,1737346243205,-102.0654372,0.00021189,2]
[349641356,1737346243216,-617.59603139,0.0002119,2]
[349641357,1737346243226,-2639.82,0.0002119,2]
[349641358,1737346243416,-153.62516247,0.0002119,2]
[349641359,1737346243445,-1092.0,0.0002119,2]
[349641360,1737346243457,-503.60331159,0.0002119,2]
[349641361,1737346243467,-504.12950376,0.0002119,2]
[349641362,1737346243476,-2500.85,0.0002119,2]
[349641363,1737346243486,-500.0,0.0002119,2]
[349641364,1737346243495,-501.734046,0.0002119,2]
[349641365,1737346243505,-4377.88,0.0002119,2]
[349641367,1737346243514,-500.0,0.0002119,2]
[349641368,1737346243524,-504.93525817,0.0002119,2]
[349641369,1737346243535,-509.17929523,0.0002119,2]
[349641370,1737346243544,-1204.86,0.0002119,2]
[349641371,1737346243554,-445.39908647,0.0002119,2]
[349641372,1737346243563,-500.0,0.0002119,2]
[349641373,1737346243573,-438.95729888,0.0002119,2]
[349641374,1737346243582,-500.0,0.0002119,2]
[349641375,1737346243591,-500.0,0.0002119,2]
[349641376,1737346243601,-2199.74,0.0002119,2]
[349641377,1737346243610,-500.0,0.0002119,2]
[349641379,1737346243620,-1420.49,0.0002119,2]
[349641381,1737346243629,-500.0,0.0002119,2]
[349641383,1737346243638,-500.0,0.0002119,2]
[349641384,1737346243648,-1150.28,0.0002119,2]
[349641385,1737346243658,-500.0,0.0002119,2]
[349641386,1737346243667,-512.85556884,0.0002119,2]
[349641387,1737346243680,-8000.12443116,0.0002119,2]
[349641388,1737346243689,-355.06733268,0.0002119,2]
[349641389,1737346243699,-730.88702766,0.0002119,2]
[349641390,1737346243769,-1931.77297234,0.0002119,2]
[349641391,1737346243779,-500.0,0.0002119,2]
[349641392,1737346243790,-500.0,0.0002119,2]
[349641393,1737346243801,-500.0,0.0002119,2]
[349641394,1737346243813,-500.0,0.0002119,2]
[349641395,1737346243826,-1249.5,0.0002119,2]
[349641396,1737346243837,-500.0,0.0002119,2]
[349641397,1737346243848,-500.0,0.0002119,2]
[349641398,1737346243858,-500.0,0.0002119,2]
[349641399,1737346243869,-500.0,0.0002119,2]
[349641400,1737346243878,-260.65004102,0.0002119,2]
[349641401,1737346243891,-70.73781619,0.0002119,2]
[349641402,1737346243902,-839.60135554,0.0002119,2]
[349641403,1737346243914,-306.06,0.0002119,2]
[349641404,1737346243933,-327.18864446,0.0002119,2]
[349641405,1737346243943,-708.97,0.0002119,2]
[349641406,1737346243957,-509.34568959,0.0002119,2]
[349641407,1737346243967,-500.0,0.0002119,2]
[349641408,1737346243977,-500.0,0.0002119,2]
[349641409,1737346243987,-503.57685171,0.0002119,2]
[349641410,1737346243997,-500.0,0.0002119,2]
[349641411,1737346244007,-2401.78,0.0002119,2]
[349641412,1737346244016,-1074.12,0.0002119,2]
[349641413,1737346244026,-500.0,0.0002119,2]
[349641414,1737346244036,-2301.42,0.0002119,2]
[349641415,1737346244046,-500.0,0.0002119,2]
[349641416,1737346244055,-500.0,0.0002119,2]
[349641417,1737346244065,-507.25732807,0.0002119,2]
[349641418,1737346244075,-503.57907068,0.0002119,2]
[349641419,1737346244085,-500.0,0.0002119,2]
[349641420,1737346244095,-2450.79,0.0002119,2]
[349641421,1737346244104,-503.24370304,0.0002119,2]
[349641422,1737346244114,-3528.72871245,0.0002119,2]
[349641423,1737346244130,-3459.60128755,0.0002119,2]
[349641424,1737346244139,-500.0,0.0002119,2]
[349641425,1737346244149,-640.85401918,0.0002119,2]
[349641426,1737346244159,-198.47105414,0.0002119,2]
[349641427,1737346244169,-500.0,0.0002119,2]
[349641428,1737346244178,-615.94846111,0.0002119,2]
[349641429,1737346244188,-500.0,0.0002119,2]
[349641430,1737346244197,-503.17223175,0.0002119,2]
[349641431,1737346244210,-9214.5,0.0002119,2]
[349641432,1737346244224,-500.0,0.0002119,2]
[349641433,1737346244234,-564.99,0.0002119,2]
[349641434,1737346244242,-2796.81,0.0002119,2]
[349641435,1737346244251,-500.0,0.0002119,2]
[349641436,1737346244261,-307.53383471,0.00021191,2]
[349641437,1737346244271,-500.0,0.00021191,2]
[349641438,1737346244280,-573.73566763,0.00021191,2]
[349641439,1737346244290,-500.0,0.00021191,2]
[349641440,1737346244300,-500.0,0.00021191,2]
[349641441,1737346244309,-500.0,0.00021191,2]
[349641442,1737346244319,-500.0,0.00021191,2]
[349641443,1737346244328,-500.0,0.00021191,2]
[349641444,1737346244340,-500.0,0.00021191,2]
[349641445,1737346244350,-906.68,0.00021191,2]
[349641446,1737346244359,-500.0,0.00021191,2]
[349641447,1737346244369,-500.0,0.00021191,2]
[349641448,1737346244380,-500.0,0.00021191,2]
[349641449,1737346244389,-500.0,0.00021191,2]
[349641450,1737346244399,-500.0,0.00021191,2]
[349641451,1737346244408,-500.0,0.00021191,2]
[349641452,1737346244418,-500.0,0.00021191,2]
[349641453,1737346244431,-778.84,0.00021191,2]
[349641454,1737346244440,-500.0,0.00021191,2]
[349641455,1737346244450,-500.0,0.00021191,2]
[349641456,1737346244464,-500.0,0.00021191,2]
[349641457,1737346244475,-500.0,0.00021191,2]
[349641458,1737346244484,-500.0,0.00021191,2]
[349641459,1737346244494,-881.2,0.00021191,2]
[349641460,1737346244505,-500.0,0.00021191,2]
[349641461,1737346244515,-500.0,0.00021191,2]
[349641462,1737346244525,-505.53998656,0.00021191,2]
[349641463,1737346244535,-500.0,0.00021191,2]
[349641464,1737346244544,-500.0,0.00021191,2]
[349641465,1737346244555,-500.0,0.00021191,2]
[349641466,1737346244564,-500.0,0.00021191,2]
[349641467,1737346244575,-500.0,0.00021191,2]
[349641468,1737346244587,-500.0,0.00021191,2]
[349641469,1737346244597,-500.0,0.00021191,2]
[349641470,1737346244607,-500.0,0.00021191,2]
[349641471,1737346244617,-500.0,0.00021191,2]
[349641472,1737346244626,-500.0,0.00021191,2]
[349641473,1737346244636,-181.1156742,0.00021191,2]
[349641474,1737346244645,-500.0,0.00021191,2]
[349641475,1737346244656,-500.0,0.00021191,2]
[349641476,1737346244666,-500.0,0.00021191,2]
[349641477,1737346244675,-515.8379655,0.00021191,2]
[349641478,1737346244685,-526.13703804,0.00021191,2]
[349641479,1737346244695,-500.0,0.00021191,2]
[349641480,1737346244708,-1690.96,0.00021191,2]
[349641481,1737346244718,-1046.53,0.00021191,2]
[349641482,1737346244727,-500.0,0.00021191,2]
[349641483,1737346244737,-500.0,0.00021191,2]
[349641484,1737346244746,-923.07,0.00021191,2]
[349641485,1737346244755,-500.0,0.00021191,2]
[349641486,1737346244765,-1612.88,0.00021191,2]
[349641487,1737346244776,-898.48,0.00021191,2]
[349641488,1737346244786,-1209.57,0.00021191,2]
[349641489,1737346244795,-1079.69,0.00021191,2]
[349641490,1737346244805,-798.64,0.00021191,2]
[349641491,1737346244814,-758.18,0.00021191,2]
[349641492,1737346244824,-887.47,0.00021191,2]
[349641493,1737346244834,-660.45,0.00021191,2]
[349641494,1737346244843,-1579.45,0.00021191,2]
[349641495,1737346244854,-500.0,0.00021191,2]
[349641496,1737346244863,-500.0,0.00021191,2]
[349641497,1737346244873,-1016.82,0.00021191,2]
[349641498,1737346244882,-500.0,0.00021191,2]
[349641499,1737346244891,-500.0,0.00021191,2]
[349641500,1737346244902,-500.0,0.00021191,2]
[349641501,1737346244911,-968.41,0.00021191,2]
[349641502,1737346244920,-600.57,0.00021191,2]
[349641503,1737346244930,-500.0,0.00021191,2]
[349641504,1737346244938,-580.25,0.00021191,2]
[349641505,1737346244948,-500.0,0.00021191,2]
[349641506,1737346244960,-500.0,0.00021191,2]
[349641507,1737346244970,-648.93,0.00021191,2]
[349641508,1737346244980,-500.0,0.00021191,2]
[349641509,1737346244990,-500.0,0.00021191,2]
[349641510,1737346244999,-500.0,0.00021191,2]
[349641511,1737346245008,-783.85,0.00021191,2]
[349641512,1737346245017,-500.0,0.00021191,2]
[349641513,1737346245026,-500.0,0.00021191,2]
[349641514,1737346245036,-500.0,0.00021191,2]
[349641515,1737346245046,-736.01,0.00021191,2]
[349641516,1737346245056,-500.0,0.00021191,2]
[349641517,1737346245066,-500.0,0.00021191,2]
[349641518,1737346245076,-1771.81,0.00021191,2]
[349641519,1737346245086,-500.0,0.00021191,2]
[349641520,1737346245095,-2159.05,0.00021191,2]
[349641521,1737346245105,-515.32069852,0.00021191,2]
[349641522,1737346245115,-500.0,0.00021191,2]
[349641523,1737346245124,-512.67525219,0.00021191,2]
[349641524,1737346245133,-2406.09,0.00021191,2]
[349641525,1737346245143,-538.63,0.00021191,2]
[349641526,1737346245152,-508.12237664,0.00021191,2]
[349641527,1737346245161,-500.0,0.00021191,2]
[349641528,1737346245170,-500.0,0.00021191,2]
[349641529,1737346245179,-1055.21,0.00021191,2]
[349641530,1737346245188,-1036.5,0.00021191,2]
[349641531,1737346245198,-500.0,0.00021191,2]
[349641532,1737346245211,-869.27,0.00021191,2]
[349641533,1737346245221,-738.65,0.00021191,2]
[349641534,1737346245230,-1656.2,0.00021191,2]
[349641535,1737346245240,-1291.26,0.00021191,2]
[349641536,1737346245250,-1638.81,0.00021191,2]
[349641537,1737346245259,-1739.9,0.00021191,2]
[349641538,1737346245269,-510.18344547,0.00021191,2]
[349641539,1737346245279,-500.0,0.00021191,2]
[349641540,1737346245288,-998.81,0.00021191,2]
[349641541,1737346245297,-541.24,0.00021191,2]
[349641542,1737346245306,-519.18595336,0.00021191,2]
[349641543,1737346245316,-518.34,0.00021191,2]
[349641544,1737346245325,-517.88716177,0.00021191,2]
[349641545,1737346245335,-500.0,0.00021191,2]
[349641546,1737346245345,-735.01,0.00021191,2]
[349641547,1737346245355,-1433.49,0.00021191,2]
[349641548,1737346245364,-1038.61,0.00021191,2]
[349641549,1737346245374,-694.41,0.00021191,2]
[349641550,1737346245384,-780.0,0.00021191,2]
[349641551,1737346245394,-500.0,0.00021191,2]
[349641552,1737346245404,-1585.42,0.00021191,2]
[349641553,1737346245414,-728.94,0.00021191,2]
[349641554,1737346245423,-529.32,0.00021191,2]
[349641555,1737346245437,-685.2,0.00021191,2]
[349641556,1737346245446,-1193.95,0.00021191,2]
[349641557,1737346245456,-1939.12,0.00021191,2]
[349641558,1737346245466,-500.0,0.00021191,2]
[349641559,1737346245475,-655.63,0.00021191,2]
[349641560,1737346245485,-639.39,0.00021191,2]
[349641561,1737346245494,-771.36,0.00021191,2]
[349641562,1737346245504,-500.0,0.00021191,2]
[349641563,1737346245514,-183.18905179,0.00021192,2]
[349641564,1737346245524,-500.0,0.00021192,2]
[349641565,1737346245534,-503.69852676,0.00021192,2]
[349641566,1737346245543,-508.29180208,0.00021192,2]
[349641567,1737346245553,-501.34531007,0.00021192,2]
[349641568,1737346245562,-506.68320054,0.00021192,2]
[349641569,1737346245571,-2838.15274,0.0002125,2]
[349641570,1737346245581,-500.0,0.00021356,2]
[349641571,1737346245591,-1042.6878,0.00021365,2]
[349641572,1737346245601,-151.011212,0.00021448,2]
[349641573,1737346245611,-151.011212,0.00021448,3]
[349641574,1737346245621,-151.011212,0.00021448,4]
[349641575,1737346245630,-178.16255008,0.00021454,2]
[349641576,1737346245639,-6377.91501937,0.00021463,2]
[349641577,1737346246174,-666.02,0.00021189,2]
[349641578,1737346246183,-500.0,0.00021189,2]
[349641579,1737346246192,-208.98,0.00021463,2]
[349641580,1737346246221,-506985.37367516,0.00021463,2]
[349641581,1737346246230,-2388.63,0.00021463,2]
[349641582,1737346246240,-4096.08,0.00021463,2]
[349641583,1737346246249,-507.11,0.00021463,2]
[349641584,1737346246259,-2085.16,0.00021463,2]
[349641585,1737346246268,-5952.86,0.00021463,2]
[349641586,1737346246277,-693.4,0.00021463,2]
[349641587,1737346246287,-506.22,0.00021463,2]
[349641588,1737346246297,-500.0,0.00021463,2]
[349641589,1737346246307,-2154.9,0.00021463,2]
[349641590,1737346246316,-1024.95,0.00021463,2]
[349641591,1737346246326,-2162.13,0.00021463,2]
[349641592,1737346246335,-500.0,0.00021463,2]
[349641593,1737346246345,-500.0,0.00021463,2]
[349641594,1737346246354,-1155.9,0.00021463,2]
[349641595,1737346246365,-500.0,0.00021463,2]
[349641596,1737346246375,-500.0,0.00021463,2]
[349641597,1737346246384,-666.02,0.00021463,2]
[349641598,1737346246395,-288.91592555,0.00021463,2]
[349641599,1737346246405,-500.0,0.00021464,2]
[349641600,1737346246415,-646.4,0.00021464,2]
[349641601,1737346246425,-500.0,0.00021464,2]
[349641602,1737346246439,-500.0,0.00021464,2]
[349641603,1737346246449,-482.04728285,0.00021464,2]
[349641604,1737346246462,-500.0,0.00021464,2]
[349641605,1737346246472,-500.0,0.00021464,2]
[349641606,1737346246481,-500.0,0.00021464,2]
[349641607,1737346246491,-757.34,0.00021464,2]
[349641608,1737346246500,-607.15,0.00021464,2]
[349641609,1737346246510,-500.0,0.00021464,2]
[349641610,1737346246520,-500.0,0.00021464,2]
[349641611,1737346246529,-500.0,0.00021464,2]
[349641612,1737346246540,-500.0,0.00021464,2]
[349641613,1737346246550,-783.38,0.00021464,2]
[349641614,1737346246560,-1035.44,0.00021464,2]
[349641615,1737346246570,-1096.36,0.00021464,2]
[349641616,1737346246580,-500.0,0.00021464,2]
[349641617,1737346246590,-500.0,0.00021464,2]
[349641618,1737346246600,-500.0,0.00021464,2]
[349641619,1737346246610,-200.0,0.00021464,2]
[349641620,1737346246619,-500.0,0.00021464,2]
[349641621,1737346246629,-517.72748275,0.00021464,2]
[349641622,1737346246638,-1079.1,0.00021464,2]
[349641623,1737346246648,-500.0,0.00021464,2]
[349641624,1737346246658,-771.47,0.00021464,2]
[349641625,1737346246668,-500.0,0.00021464,2]
[349641626,1737346246677,-500.0,0.00021464,2]
[349641627,1737346246687,-754.44,0.00021464,2]
[349641628,1737346246696,-732.02,0.00021464,2]
[349641629,1737346246709,-526.3,0.00021464,2]
[349641630,1737346246719,-561.77,0.00021464,2]
[349641631,1737346246728,-500.0,0.00021464,2]
[349641632,1737346246738,-1670.3,0.00021464,2]
[349641633,1737346246747,-588.53,0.00021464,2]
[349641634,1737346246756,-2552.313907,0.00021464,2]
[349641635,1737346246766,-500.0,0.00021464,2]
[349641636,1737346246776,-500.0,0.00021464,2]
[349641637,1737346246785,-500.0,0.00021464,2]
[349641638,1737346246795,-1472.49,0.00021464,2]
[349641639,1737346246805,-500.0,0.00021464,2]
[349641640,1737346246814,-500.0,0.00021464,2]
[349641641,1737346246824,-923.37,0.00021464,2]
[349641642,1737346246834,-692.41,0.00021464,2]
[349641643,1737346246843,-1344.0,0.00021464,2]
[349641644,1737346246853,-916.921946,0.00021464,2]
[349641645,1737346246864,-661.77,0.00021464,2]
[349641646,1737346246874,-500.0,0.00021464,2]
[349641647,1737346246884,-500.0,0.00021464,2]
[349641648,1737346246894,-1580.73,0.00021464,2]
[349641649,1737346246903,-500.0,0.00021464,2]
[349641650,1737346246913,-513.58193251,0.00021464,2]
[349641651,1737346246922,-500.0,0.00021464,2]
[349641652,1737346246930,-575.27,0.00021464,2]
[349641653,1737346246939,-500.0,0.00021464,2]
[349641654,1737346246949,-500.0,0.00021464,2]
[349641655,1737346246962,-1274.48,0.00021464,2]
[349641656,1737346246971,-527.58,0.00021464,2]
[349641657,1737346246982,-500.0,0.00021464,2]
[349641658,1737346246991,-500.0,0.00021464,2]
[349641659,1737346247001,-770.27,0.00021464,2]
[349641660,1737346247011,-500.0,0.00021464,2]
[349641661,1737346247020,-1739.01,0.00021464,2]
[349641662,1737346247030,-1574.28,0.00021464,2]
[349641663,1737346247040,-500.0,0.00021464,2]
[349641664,1737346247050,-715.61,0.00021464,2]
[349641665,1737346247059,-500.0,0.00021464,2]
[349641666,1737346247069,-500.0,0.00021464,2]
[349641667,1737346247078,-500.0,0.00021464,2]
[349641668,1737346247087,-500.0,0.00021464,2]
[349641669,1737346247097,-587.13,0.00021464,2]
[349641670,1737346247107,-1508.69,0.00021464,2]
[349641671,1737346247116,-500.0,0.00021464,2]
[349641672,1737346247125,-500.0,0.00021464,2]
[349641673,1737346247135,-500.0,0.00021464,2]
[349641674,1737346247144,-500.0,0.00021464,2]
[349641675,1737346247154,-1403.34,0.00021464,2]
[349641676,1737346247163,-1360.95,0.00021464,2]
[349641677,1737346247172,-731.78,0.00021464,2]
[349641678,1737346247182,-500.0,0.00021464,2]
[349641679,1737346247191,-1417.26,0.00021464,2]
[349641680,1737346247201,-507.66470583,0.00021464,2]
[349641681,1737346247215,-509.79712054,0.00021464,2]
[349641682,1737346247226,-1058.34,0.00021464,2]
[349641683,1737346247235,-508.28829052,0.00021464,2]
[349641684,1737346247245,-500.0,0.00021464,2]
[349641685,1737346247254,-549.79503096,0.00021464,2]
[349641686,1737346247265,-970.53,0.00021464,2]
[349641687,1737346247275,-1896.36,0.00021464,2]
[349641688,1737346247284,-500.0,0.00021464,2]
[349641689,1737346247294,-500.0,0.00021464,2]
[349641690,1737346247304,-960.73,0.00021464,2]
[349641691,1737346247314,-500.0,0.00021464,2]
[349641692,1737346247323,-500.0,0.00021464,2]
[349641693,1737346247333,-1434.74,0.00021464,2]
[349641694,1737346247343,-350.40079554,0.00021464,2]
[349641695,1737346247352,-500.0,0.00021464,2]
[349641696,1737346247363,-500.0,0.00021464,2]
[349641697,1737346247373,-828.36,0.00021464,2]
[349641698,1737346247382,-500.0,0.00021464,2]
[349641699,1737346247392,-500.0,0.00021464,2]
[349641700,1737346247401,-500.0,0.00021464,2]
[349641701,1737346247410,-504.12453507,0.00021464,2]
[349641702,1737346247419,-320.06368369,0.00021464,2]
[349641703,1737346247429,-500.0,0.00021464,2]
[349641704,1737346247440,-218.1070503,0.00021464,2]
[349641705,1737346247451,-1022.43,0.00021464,2]
[349641706,1737346247465,-500.0,0.00021464,2]
[349641707,1737346247475,-500.0,0.00021464,2]
[349641708,1737346247484,-500.0,0.00021464,2]
[349641709,1737346247494,-813.7,0.00021464,2]
[349641710,1737346247503,-500.0,0.00021464,2]
[349641711,1737346247513,-698.13,0.00021464,2]
[349641712,1737346247524,-500.0,0.00021464,2]
[349641713,1737346247533,-500.0,0.00021464,2]
[349641714,1737346247543,-3721.53,0.00021464,2]
[349641715,1737346247552,-509.58870302,0.00021464,2]
[349641716,1737346247562,-2384.23,0.00021464,2]
[349641717,1737346247571,-1131.43,0.00021464,2]
[349641718,1737346247581,-500.0,0.00021464,2]
[349641719,1737346247590,-3492.08,0.00021464,2]
[349641720,1737346247601,-500.0,0.00021464,2]
[349641721,1737346247610,-1614.12,0.00021464,2]
[349641722,1737346247619,-2593.95,0.00021464,2]
[349641723,1737346247629,-500.0,0.00021464,2]
[349641724,1737346247638,-520.91880458,0.00021464,2]
[349641725,1737346247648,-500.0,0.00021464,2]
[349641726,1737346247658,-511.45815059,0.00021464,2]
[349641727,1737346247667,-511.99439281,0.00021464,2]
[349641728,1737346247676,-3397.63,0.00021464,2]
[349641729,1737346247685,-1510.27,0.00021464,2]
[349641730,1737346247695,-500.0,0.00021464,2]
[349641731,1737346247708,-4589.78,0.00021464,2]
[349641732,1737346247718,-500.0,0.00021464,2]
[349641733,1737346247728,-500.0,0.00021464,2]
[349641734,1737346247737,-6845.95,0.00021464,2]
[349641735,1737346247746,-340.77093817,0.00021464,2]
[349641736,1737346247755,-1112.38,0.00021464,2]
[349641737,1737346247764,-500.0,0.00021464,2]
[349641738,1737346247774,-500.0,0.00021464,2]
[349641739,1737346247783,-500.0,0.00021464,2]
[349641740,1737346247792,-803.05,0.00021464,2]
[349641741,1737346247802,-508.21,0.00021464,2]
[349641742,1737346247811,-717.54,0.00021464,2]
[349641743,1737346247821,-500.0,0.00021464,2]
[349641744,1737346247830,-500.0,0.00021464,2]
[349641745,1737346247840,-500.0,0.00021464,2]
[349641746,1737346247850,-500.0,0.00021464,2]
[349641747,1737346247859,-2165.95,0.00021464,2]
[349641748,1737346247868,-800.77,0.00021464,2]
[349641749,1737346247877,-500.0,0.00021464,2]
[349641750,1737346247886,-500.0,0.00021464,2]
[349641751,1737346247896,-527.26425344,0.00021464,2]
[349641752,1737346247905,-500.0,0.00021464,2]
[349641753,1737346247915,-500.0,0.00021464,2]
[349641754,1737346247924,-500.0,0.00021464,2]
[349641755,1737346247933,-2737.5,0.00021464,2]
[349641756,1737346247942,-500.0,0.00021464,2]
[349641757,1737346247952,-500.0,0.00021464,2]
[349641758,1737346247964,-1437.39,0.00021464,2]
[349641759,1737346247974,-9698.19,0.00021464,2]